Workbook

Sheet Instructions
B4: WELCOME TO THE NORTH GEORGIA | H4: REMEMBER
C5: COW-CALF BUDGET
G6: In order to Print a specific budget
C7: Budget | D7: Button | G7: you must Calculate before you
C8: Type | G8: Print that particular budget.
C10: TOTAL
C11: COST | H11: NOTE
C13: CASH | G13: All input in red and black is not to
C14: FLOW | G14: be tampered with! Only type into
G15: cells that contain green characters.
C16: VARIABLE
C17: COST
C19: Note: Be sure to enable all
C20: macros on start-up.

Sheet Main
B1: COW-CALF BUDGET (NORTH GEORGIA) | P1: 1 | T1: 3 | X1: 3 | Y1: 2 | Z1: 1
B2: Revised by Levi Russell, 2018
B3: Extension Agricultural Economics Department, University of Georgia | Z3: (Total Cost Budget)
B4: Based on Budgets Originally Developed by John C. McKissick | Z4: (Cash Cost Budget)
Z5: (Variable Cost Budget)
B8: INPUT DATA: Your values in the unprotected or highlighted cells | Z8: DIRECT FIXED COST
Z9: ANNUAL FIXED PAYMENT
B10: Select Budget Types | Z10: DIRECT FIXED COST
Z12: RETURNS OVER TOTAL COST ADJUSTED FOR RISK
P13: 1 | T13: 3 | X13: 3 | Y13: 2 | Z13: 1
B14: COW-CALF BUDGET (NORTH GEORGIA) - 2018 | P14: 3 | T14: 3 | X14: 3 | Y14: 2 | Z14: 1
B15: =+IF(bud_type=3,(Z3),IF(bud_type=2,(Z4),(Z5))) -> (Total Cost Budget) | Z15: RETURNS OVER CASH FLOW COST ADJUSTED FOR RISK
Z16: RETURNS OVER VARIABLE COST ADJUSTED FOR RISK
B18: NUMBER OF BROOD COWS | H18: 50
B19: PERCENT CALF CROP (DECIMAL) | H19: 0.85
B20: COW CULLING PERCENTAGE (DECIMAL) | H20: 0.15
B21: NUMBER OF REPLACEMENT HEIFERS RAISED | H21: 0
B22: REPLACEMENT HEIFER CULLING PERCENT | H22: 0.15
B23: SELLING WEIGHT OF CULL HEIFERS (CWT.) | H23: 7.5
B24: PRICE OF CULL HEIFERS ($/CWT.) | H24: 110
B25: NUMBER OF CALVES SOLD | H25: =H18*H19-H21 -> 42.5
B26: BROOD COW DEATH LOSS (DECIMAL) | H26: 0.02
B27: SELLING WEIGHT OF CULL COWS (CWT.) | H27: 11
B28: PRICE OF CULL COWS ($/CWT.) | H28: 55
B29: NUMBER OF BULLS | H29: 2
B30: BULL CULLING PERCENTAGE (DECIMAL) | H30: 0.25
B31: SELLING WEIGHT OF CULL BULLS (CWT.) | H31: 18
B32: PRICE OF CULL BULLS ($/CWT.) | H32: 73
F35: BEST | G35: OPT. | H35: MEDIAN | I35: PESS. | J35: WORST
B36: STEER WEANING/SALES WEIGHT (CWT.) | F36: 6 | G36: =+(F36+H36)/2 -> 5.75 | H36: 5.5 | I36: =+(J36+H36)/2 -> 5.225 | J36: 4.95
B37: HEIFER WEANING/SALES WEIGHT (CWT.) | F37: =+F36*0.9 -> 5.4 | G37: =+(F37+H37)/2 -> 5.175 | H37: =+H36*0.9 -> 4.95 | I37: =+(J37+H37)/2 -> 4.7025 | J37: =+J36*0.9 -> 4.455 | O37: Calf Crop %
B38: AVERAGE WEANING/SALES WEIGHT (CWT.) | F38: =((H18*H19/2)*F36+(H18*H19/2-H21)*F37)/(H18*H19-H21) -> 5.7 | G38: =((H18*H19/2)*G36+(H18*H19/2-H21)*G37)/(H18*H19-H21) -> 5.4625 | H38: =((H18*H19/2)*H36+(H18*H19/2-H21)*H37)/(H18*H19-H21) -> 5.225 | I38: =((H18*H19/2)*I36+(H18*H19/2-H21)*I37)/(H18*H19-H21) -> 4.96375 | J38: =((H18*H19/2)*J36+(H18*H19/2-H21)*J37)/(H18*H19-H21) -> 4.7025 | N38: Avg. Weaning Wt. | O38: 0.6 | P38: 0.75 | Q38: 0.85 | R38: 0.9
B39: SELL PRICE OF STEERS($/CWT.) | F39: 130 | G39: 132 | H39: 134 | I39: 136 | J39: 138 | N39: 5.75 | O39: =+(cows*O$38*$N39*$G$101)-nvc -> -2576.983874 | P39: 2997.489811 | Q39: 6713.8056 | R39: 8571.963495
B40: SELL PRICE OF HEIFERS($/CWT) | F40: =+F39-10 -> 120 | G40: =+(F40+H40)/2 -> 122 | H40: =+H39-10 -> 124 | I40: =+(H40+J40)/2 -> 126 | J40: =+J39-10 -> 128 | N40: 5.5 | O40: -3546.457558 | P40: 1785.647705 | Q40: =+(cows*Q$38*$N40*$G$101)-nvc -> 5340.384547 | R40: 7117.752969
B41: WEIGHTED AVE. SELLING PRICE | F41: =((H18*H19/2)*H36*F39+(H18*H19/2-H21)*H37*F40)/((H18*H19-H21)*H38) -> 125.2631579 | G41: =((H18*H19/2)*H36*G39+(H18*H19/2-H21)*H37*G40)/((H18*H19-H21)*H38) -> 127.2631579 | H41: =((H18*H19/2)*H36*H39+(H18*H19/2-H21)*H37*H40)/((H18*H19-H21)*H38) -> 129.2631579 | I41: =((H18*H19/2)*H36*I39+(H18*H19/2-H21)*H37*I40)/((H18*H19-H21)*H38) -> 131.2631579 | J41: =((H18*H19/2)*H36*J39+(H18*H19/2-H21)*H37*J40)/((H18*H19-H21)*H38) -> 133.2631579 | N41: 5 | O41: -5485.404926 | P41: -638.0365052 | Q41: 2593.542442 | R41: 4209.331916
N42: 4.5 | O42: -7424.352295 | P42: -3061.720716 | Q42: -153.299663 | R42: 1300.910863
N43: 4.25 | O43: -8393.825979 | P43: -4273.562821 | Q43: -1526.720716 | R43: -153.299663
B44: Item | D44: Unit | E44: Units/Cow | F44: Total Quantity | G44: $/Unit | H44: Total Amount | I44: $/Cow | J44: $/Cwt.
B46: VARIABLE COSTS : | Q46: =+(Q43-P43) -> 2746.842105
A47: Bermuda Pasture Detail | B47: Bermuda Pasture | D47: Acre | E47: 0.5 | F47: =+E47*H18 -> 25 | G47: =+bermuda -> 165.56 | H47: =F47*G47 -> 4139 | I47: =+H47/$H$18 -> 82.78 | J47: =+H47/$E$103 -> 18.66689705 | N47: total Pasture | O47: =+I47+I48+I49 -> 200.430375
A48: Fescue Pasture Detail | B48: Fescue Pasture | D48: Acre | E48: 0.75 | F48: =+E48*$H$18 -> 37.5 | G48: =+bahia -> 107.7625 | H48: =F48*G48 -> 4041.09375 | I48: =+H48/$H$18 -> 80.821875 | J48: 18.2253397 | N48: Hay | O48: =+I52 -> 165 | P48: =0.133333333333333*100 -> 13.33333333 | Q48: =+Q46/P48 -> 206.0131579
A49: Winter Grazing Detail | B49: Winter Annual Pasture | D49: Acre | E49: 0.2 | F49: =+E49*$H$18 -> 10 | G49: =+winter -> 184.1425 | H49: =F49*G49 -> 1841.425 | I49: 36.8285 | J49: 8.304829888 | N49: Feed | O49: =+I53 -> 136.11
A50: Summer Grazing Detail | B50: Summer Annual Pasture | D50: Acre | E50: 0 | F50: =+E50*$H$18 -> 0 | G50: =+summer -> 147.4 | H50: =F50*G50 -> 0 | I50: 0 | J50: 0 | N50: Vet + mineral | O50: =+I58+I59 -> 46.955
A51: Bermuda Hay Detail | B51: Hay Production | D51: Acre | E51: 0 | F51: =+E51*H18 -> 0 | G51: =+hay -> 401.4328 | H51: =F51*G51 -> 0 | I51: 0 | J51: 0 | N51: Repairs | O51: =+I64 -> 9.211510417
B52: Purchased Hay | D52: Tons/Cow | E52: 1.5 | F52: =+E52*cows -> 75 | G52: 110 | H52: =+G52*F52 -> 8250 | I52: =+H52/$H$18 -> 165 | J52: 37.20751406 | N52: Labor
A53: Supplemental Feed Detail | B53: Total Supplemental Feed | D53: Cow Unit | H53: =+SUM(H54:H57) -> 6805.5 | I53: =+SUM(I54:I57) -> 136.11 | J53: =+SUM(J54:J57) -> 30.6928166 | N53: Interest | O53: =+I69 -> 33.58241313
B54: - Cow Herd | D54: Ton | E54: =+cowfeed_lbs/2000 -> 0.36 | F54: =+E54*$H$18 -> 18 | G54: =+H54/F54 -> 275 | H54: =+cowfeed_cost*cows -> 4950 | I54: =+H54/cows -> 99 | J54: =+H54/$E$103 -> 22.32450843 | N54: Marketing | O54: =+I70 -> 33.64827367
B55: - Replacement Heifers | D55: Ton | E55: =+hfrfeed_lbs/2000 -> 0 | F55: =+E55*$H$18 -> 0 | G55: =+IF(F55<>0,(H55/F55),0) -> 0 | H55: =+hfrfeed_cost*hfrs -> 0 | I55: =+H55/cows -> 0 | J55: =+H55/$E$103 -> 0
B56: - Bulls | D56: Ton | E56: =+bullfeed_lbs/2000 -> 0.36 | F56: =+E56*$H$18 -> 18 | G56: =+IF(F56<>0,(H56/F56),0) -> 11 | H56: =+bullfeed_cost*bulls -> 198 | I56: =+H56/cows -> 3.96 | J56: =+H56/$E$103 -> 0.8929803374
B57: - Calves | D57: Ton | E57: =+calffeed_lbs/2000 -> 0.12 | F57: =+E57*$H$18 -> 6 | G57: =+IF(F57<>0,(H57/F57),0) -> 276.25 | H57: =+calffeed_cost*(cows*calfcrop_pcnt) -> 1657.5 | I57: =+H57/cows -> 33.15 | J57: =+H57/$E$103 -> 7.475327824
B58: Salt & Minerals | D58: Lbs./Cow | E58: =0.25*365 -> 91.25 | F58: =+E58*cows -> 4562.5 | G58: 0.28 | H58: =F58*G58 -> 1277.5 | I58: 25.55 | J58: =+H58/$E$103 -> 5.761527177
A59: Veterinary Detail | B59: Total Vet & Medicine | D59: Cow Unit | H59: =SUM(H60:H63) -> 1070.25 | I59: 21.405 | J59: 4.826829324
B60: - Cow Herd | D60: Cow | E60: 1 | F60: =+H18 -> 50 | G60: =+cow_vet -> 14 | H60: =F60*G60 -> 700 | I60: 14 | J60: 3.157001193
B61: - Replacement Heifers | D61: Heifer | E61: =+H21/H18 -> 0 | F61: =+hfrs -> 0 | G61: =+hfr_vet -> 16 | H61: 0 | I61: 0 | J61: 0
B62: - Bulls | D62: Bull | E62: =+H29/H18 -> 0.04 | F62: =+bulls -> 2 | G62: =+bull_vet -> 47 | H62: 94 | I62: 1.88 | J62: 0.4239401602
B63: - Calves | D63: calf | E63: =+H19 -> 0.85 | F63: =+(cows*calfcrop_pcnt) -> 42.5 | G63: =+calf_vet -> 6.5 | H63: 276.25 | I63: 5.525 | J63: 1.245887971
B64: Fence & Facilties Repairs & Maintenance | D64: % of Facilities | F64: =+(facil_inv+Lvstk_Facil!lvstk_inv) -> 92115.10417 | G64: 0.005 | H64: 460.5755208 | I64: 9.211510417 | J64: =+H64/$E$103 -> 2.077196384
B65: Labor (including insurance, taxes, and SS) | D65: Hrs./Cow | E65: 7 | F65: =+E65*H18 -> 350 | G65: 0 | H65: 0 | I65: 0 | J65: 0
B66: Pasture Rent | D66: Acres | E66: 0 | F66: =+E66*cows -> 0 | G66: 20 | H66: =F66*G66 -> 0 | I66: 0 | J66: 0
B67: Machinery Rent | D67: Year | E67: 0 | F67: =+E67*H20 -> 0 | G67: 0 | H67: =F67*G67 -> 0 | I67: 0 | J67: 0
B68: Other | D68: Cow | E68: 1 | F68: =+E68*H18 -> 50 | G68: 2 | H68: 100 | I68: 2 | J68: 0.4510001704
B69: Interest on Operating Capital (8 months) | D69: Percent | F69: =SUM(H47:H68)-H53-H59 -> 27985.34427 | G69: 0.09 | H69: =(F69*G69)/12*8 -> 1679.120656 | I69: 33.58241313 | J69: 7.572837021
A70: Marketing Detail | B70: Auction & Hauling | D70: Head | F70: =H25+(H20*H18) -> 50 | G70: =+mktng_cst -> 33.64827367 | H70: =F70*G70 -> 1682.413683 | I70: 33.64827367 | J70: 7.587688579
B71: TOTAL VARIABLE COST | H71: =+SUM(H64:H70)+H59+H53+SUM(H47:H52) -> 30069.37861 | I71: 601.3875722 | J71: 135.6129488
B73: FIXED COST SECTION
A74: Livestock Detail | B74: =IF(bud_type=2," Annual Livestock Debt Payment",IF(bud_type=1,"No Fixed Cost for Variable Cost Budget","Annual Livestock Fixed Costs")) -> Annual Livestock Fixed Costs | H74: =IF(bud_type=3,Lvstk_Facil!lvstk_fc,IF(bud_type=2,(Lvstk_Facil!lvstk_pmt),0)) -> 3490.92 | I74: =+H74/cows -> 69.8184 | J74: =+H74/exp_wt -> 15.74405515
A75: Building & Facilities Detail | B75: =IF(bud_type=2," Annual Buildings & Facilities Debt Payment",IF(bud_type=1,"No Fixed Cost for Variable Cost Budget","Annual Buildings & Facilities Fixed Costs")) -> Annual Buildings & Facilities Fixed Costs | H75: =IF(bud_type=3,Lvstk_Facil!facil_fc,IF(bud_type=2,(Lvstk_Facil!facil_pmt),0)) -> 3261.898115 | I75: 65.2379623 | J75: 14.71116606
A76: Equipment Detail | B76: =IF(bud_type=2," Annual Equipment Debt Payment",IF(bud_type=1,"No Fixed Cost for Variable Cost Budget","Annual Equipment Fixed Costs")) -> Annual Equipment Fixed Costs | H76: =IF(bud_type=3,equip_fc+cow_fc,IF(bud_type=2,(equip_pmt),0)) -> 4214.36 | I76: 84.2872 | J76: 19.00677078
A77: Land Detail | B77: =IF(bud_type=2," Annual Land Debt Payment",IF(bud_type=1,"No Fixed Cost for Variable Cost Budget","Annual Land Fixed Costs Excluding Taxes")) -> Annual Land Fixed Costs Excluding Taxes | D77: =+IF(bud_type<>1,"Percent of Land Value","") -> Percent of Land Value | F77: =+IF(bud_type<>1,Lvstk_Facil!land_inv,"") -> 63000 | G77: 0 | H77: =+IF(bud_type=3,G77*F77,IF(bud_type=2,(Lvstk_Facil!LAND_PMT),0)) -> 0 | I77: 0 | J77: 0
B78: =IF(bud_type=1,"No Fixed Cost for Variable Cost Budget","Annual Real Estate Taxes") -> Annual Real Estate Taxes | D78: =+IF(bud_type<>1,"Percent of Land Value","") -> Percent of Land Value | F78: =+IF(bud_type<>1,Lvstk_Facil!land_inv,"") -> 63000 | G78: 0.01 | H78: =+IF(F78<>"",G78*F78,0) -> 630 | I78: 12.6 | J78: 2.841301073
B79: =IF(bud_type=1,"No Fixed Cost for Variable Cost Budget","Annual Farm Insurance") -> Annual Farm Insurance | D79: =+IF(bud_type<>1,"Pcnt. of Lvstk., Facl, & Eqp.","") -> Pcnt. of Lvstk., Facl, & Eqp. | F79: =+IF(bud_type<>1,Lvstk_Facil!lvstk_inv+facil_inv+Equipment!B21,"") -> 198865.1042 | G79: =+IF(bud_type<>1,0.25%,0) -> 0.0025 | H79: =+IF(F79<>"",G79*F79,0) -> 497.1627604 | I79: 9.943255208 | J79: 2.242204897
B80: =IF(bud_type=2,"TOTAL FIXED PAYMENTS",IF(bud_type=1,"TOTAL VARIABLE COST","TOTAL FIXED COST")) -> TOTAL FIXED COST | H80: =SUM(H74:H79) -> 12094.34088 | I80: =+H80/$H$18 -> 241.8868175 | J80: 54.54549796
B82: EXPECTED BREAK-EVEN TABLE
B84: ITEM | D84: TOTAL | F84: $/Cwt. | H84: $/Cow
B85: Variable Cost | D85: =H71 -> 30069.37861 | F85: =+D85/($H$25*$H$38) -> 135.4095293 | H85: =+D85/$H$18 -> 601.3875722
B86: Less: Value of cull cows, bulls and heifers | D86: =+(H18*H20*H27*H28)+(H30*H29*H31*H32)+(H21*H22*H23*H24) -> 5194.5 | F86: =-D86/($H$25*$H$38) -> -23.39206305 | H86: =+D86/$H$18 -> 103.89
B87: NET VARIABLE COST | D87: =D85-D86 -> 24874.87861 | F87: =+D87/($H$25*$H$38) -> 112.0174663 | H87: =+D87/H18 -> 497.4975722
B88: =+IF(bud_type<>1,B74,"") -> Annual Livestock Fixed Costs | D88: =+H74 -> 3490.92 | F88: 15.72043907 | H88: =+D88/H18 -> 69.8184
B89: =+IF(bud_type<>1,B75,"") -> Annual Buildings & Facilities Fixed Costs | D89: =+H75 -> 3261.898115 | F89: 14.68909931 | H89: =+D89/H18 -> 65.2379623
B90: =+IF(bud_type<>1,B76,"") -> Annual Equipment Fixed Costs | D90: =+H76 -> 4214.36 | F90: 18.97826062 | H90: =+D90/H18 -> 84.2872
B91: =+IF(bud_type<>1,B77,"") -> Annual Land Fixed Costs Excluding Taxes | D91: =+H77 -> 0 | F91: 0 | H91: =+D91/H18 -> 0
B92: =+IF(bud_type<>1,B78,"") -> Annual Real Estate Taxes | D92: =+H79 -> 497.1627604 | F92: 2.238841589 | H92: =+D92/cows -> 9.943255208
B93: TOTAL COSTS | D93: =SUM(D87:D91) -> 35842.05673 | F93: =D93/((H18*H19-H21)*H38) -> 161.4052653 | H93: =+D93/H18 -> 716.8411345
B96: EXPECTED RETURNS FROM CALF SALES TABLE
E97: =H25 -> 42.5 | F97: CALVES SOLD
C99: EXP. WEIGHT | E99: TOTAL WEIGHT | G99: EXP.PRICE | I99: TOTAL RETURN
C100: (cwt./cow) | E100: (cwt.) | G100: ($/cwt.)
C101: =(0.04*F38+0.25*G38+0.42*H38+0.25*I38+0.04*J38)*H25/H18 -> 4.434588125 | E101: =(0.04*F38+0.25*G38+0.42*H38+0.25*I38+0.04*J38)*H25 -> 221.7294063 | G101: =(0.04*F41+0.25*G41+0.42*H41+0.25*I41+0.04*J41) -> 129.2631579 | I101: =+G101*E101 -> 28661.44325
C102: (cwt./calf) | E102: (cwt.) | G102: ($/cwt.)
C103: =(0.04*F38+0.25*G38+0.42*H38+0.25*I38+0.04*J38) -> 5.2171625 | E103: =+C103*calves_sold -> 221.7294063 | G103: =(0.04*F41+0.25*G41+0.42*H41+0.25*I41+0.04*J41) -> 129.2631579 | I103: =+G103*E103 -> 28661.44325
B107: RETURNS OVER TOTAL COST ADJUSTED FOR RISK
B108: Net return levels (TOP ROW);
B109: The chances of obtaining this level or more (MIDDLE ROW); and
B110: The chances of obtaining this level or less (BOTTOM ROW).
E113: Optimistic | G113: Expected | I113: Pessimistic
B114: Returns | D114: =Q165:Q165+1.5*S164:S164 -> -5949.734716 | E114: =Q165:Q165+S164:S164 -> -6576.794083 | F114: =Q165:Q165+0.5*S164:S164 -> -7203.853451 | G114: =Q165:Q165 -> -7830.912818 | H114: =Q165:Q165-0.5*S165:S165 -> -8474.684375 | I114: =Q165:Q165-S165:S165 -> -9118.455933 | J114: =Q165:Q165-1.5*S165:S165 -> -9762.22749 | P114: * | Q114: * | U114: *
B115: Chances | D115: =IF(R167<1,IF(Q167,V167,1-V167),IF(Q167,V168,1-V168)) -> 0.06552631637 | E115: =IF(X167<1,IF(W167,AB167,1-AB167),IF(W167,AB168,1-AB168)) -> 0.1586655983 | F115: =IF(AD167<1,IF(AC167,AH167,1-AH167),IF(AC167,AH168,1-AH168)) -> 0.3120286824 | G115: =IF(R169<1,IF(Q169,V169,1-V169),IF(Q169,V170,1-V170)) -> 0.5034625546 | H115: =IF(X169<1,IF(W169,AB169,1-AB169),IF(W169,AB170,1-AB170)) -> 0.6948780952 | I115: =IF(AD169<1,IF(AC169,AH169,1-AH169),IF(AC169,AH170,1-AH170)) -> 0.8413547054 | J115: =IF(R171<1,IF(Q171,V171,1-V171),IF(Q171,V172,1-V172)) -> 0.9319429751 | P115: * | Q115: Must match budget Entries | U115: *
B116: Chances | D116: =IF(R167<1,IF(Q167,1-V167,V167),IF(Q167,1-V168,V168)) -> 0.9344736836 | E116: =IF(X167<1,IF(W167,1-AB167,AB167),IF(W167,1-AB168,AB168)) -> 0.8413344017 | F116: =IF(AD167<1,IF(AC167,1-AH167,AH167),IF(AC167,1-AH168,AH168)) -> 0.6879713176 | G116: =IF(R169<1,IF(Q169,1-V169,V169),IF(Q169,1-V170,V170)) -> 0.4965374454 | H116: =IF(X169<1,IF(W169,1-AB169,AB169),IF(W169,1-AB170,AB170)) -> 0.3051219048 | I116: =IF(AD169<1,IF(AC169,1-AH169,AH169),IF(AC169,1-AH170,AH170)) -> 0.1586452946 | J116: =IF(R171<1,IF(Q171,1-V171,V171),IF(Q171,1-V172,V172)) -> 0.06805702494 | P116: * | Q116: - | U116: *
P117: * | Q117: 1 | R117: UNIT | U117: *
B118: CHANCE FOR PROFIT | E118: =IF(X171<1,IF(W171,AB171,1-AB171),IF(W171,AB172,1-AB172)) -> 0.006209692916 | F118: BASE BUDGETED NET REVENUE - TOTAL | J118: =+Q165 -> -7830.912818 | P118: * | Q118: =+H25*F38+(H18*H20*H27) -> 324.75 | R118: Best Y | S118: =(((H18*H19/2)*H36*F39+(H18*H19/2-H21)*H37*F40)+((H28+(F41-H41)*0.5)*H18*H20*H27))/(((H18*H19-H21)*H38)+(H18*H20*H27)) -> 105.6884876 | T118: Best P | U118: * | V118: EXP.CULL WEIGHT | X118: =H18*H20*H27 -> 82.5
F119: BASE BUDGETED NET REVENUE - $/HEAD MARKETED | J119: =+J118/calves_sold -> -184.2567722 | P119: * | Q119: =+H25*G38+(H18*H20*H27) -> 314.65625 | R119: Opt. Y | S119: =(((H18*H19/2)*H36*G39+(H18*H19/2-H21)*H37*G40)+((H28+(G41-H41)*0.5)*H18*H20*H27))/(((H18*H19-H21)*H38)+(H18*H20*H27)) -> 107.4176072 | T119: Opt. P | U119: * | V119: EXP.CULL PRICE | X119: =0.04*(H28+0.5*(F41-H41))+0.25*(H28+0.5*(G41-H41))+0.42*H28+0.25*(H28-0.5*(H41-I41))+0.04*(H28-0.5*(H41-J41)) -> 55
F120: BASE BUDGETED NET REVENUE - $/COW | J120: =+J118/cows -> -156.6182564 | P120: * | Q120: =+H25*H38+(H18*H20*H27) -> 304.5625 | R120: Med. Y | S120: =(((H18*H19/2)*H36*H39+(H18*H19/2-H21)*H37*H40)+(H28*H18*H20*H27))/(((H18*H19-H21)*H38)+(H18*H20*H27)) -> 109.1467269 | T120: Med. P | U120: * | V120: =+Q119*S119-D85-D88-D89-D90 -> -7236.935253
B121: PROFIT IS RETURN TO RISK AND ALL "ZERO" ITEMS IN THE BUDGET. | P121: * | Q121: =+H25*I38+(H18*H20*H27) -> 293.459375 | R121: Pess. Y | S121: =(((H18*H19/2)*H36*I39+(H18*H19/2-H21)*H37*I40)+((H28+(I41-H41)*0.5)*H18*H20*H27))/(((H18*H19-H21)*H38)+(H18*H20*H27)) -> 110.8758465 | T121: Pess. P | U121: * | V121: =Q119*S119 -> 33799.62147
B122: MAY ENTER YOUR OWN VALUES. | P122: * | Q122: =+H25*J38+(H18*H20*H27) -> 282.35625 | R122: Worst Y | S122: =(((H18*H19/2)*H36*J39+(H18*H19/2-H21)*H37*J40)+((H28+(J41-H41)*0.5)*H18*H20*H27))/(((H18*H19-H21)*H38)+(H18*H20*H27)) -> 112.6049661 | T122: Worst P | U122: *
P123: * | Q123: 0 | R123: H&MC | U123: *
P124: * | Q124: =D85 -> 30069.37861 | R124: T.C. | U124: *
D125: Total Dollars | E125: $/Cow | F125: $/Calf Marketed | P125: * | Q125: * | U125: *
B126: Returns to Land, Labor, Capital and Management | D126: =+Q164-(H71-H66-H65-H70) -> 4818.67898 | E126: =+D126/cows -> 96.37357961 | F126: =+D126/calves_sold -> 113.3806819 | P126: : | Q126: - | U126: :
B127: Returns to Labor, Capital and Management | D127: =+D126-H77-H66-H70 -> 3136.265297 | E127: =+D127/cows -> 62.72530594 | F127: =+D127/calves_sold -> 73.79447758 | P127: : | R127: Calculations | U127: :
B128: Returns to Land, Capital and Management | D128: =+D126-H65-H70 -> 3136.265297 | E128: =+D128/cows -> 62.72530594 | F128: =+D128/calves_sold -> 73.79447758 | P128: : | Q128: - | U128: :
P129: : | Q129: =0.04*Q118+0.25*Q119+0.42*Q120+0.25*Q121+0.04*Q122 -> 304.2294062 | R129: Exp. Y | S129: =0.04*S118+0.25*S119+0.42*S120+0.25*S121+0.04*S122 -> 109.1467269 | T129: Exp. P | U129: :
P130: : | Q130: =0.25*(Q118-Q129)+0.5*(Q119-Q129) -> 10.34357031 | R130: SYO | S130: =0.25*(S118-S129)+0.5*(S119-S129) -> -1.729119639 | T130: SPO | U130: :
P131: : | Q131: =0.25*(Q129-Q122)+0.5*(Q129-Q121) -> 10.85330469 | R131: SYP | S131: =0.25*(S129-S122)+0.5*(S129-S121) -> -1.729119639 | T131: SPP | U131: :
P132: : | Q132: =Q130^2 -> 106.9894468 | R132: VYO | S132: =S130^2 -> 2.989854725 | T132: VPO | U132: :
P133: : | Q133: =Q131^2 -> 117.7942226 | R133: VYP | S133: =S131^2 -> 2.989854725 | T133: VPP | U133: :
P134: : | Q134: - | U134: :
P135: : | Q135: =(Q129^2*S132)+(S129-Q123)^2*Q132 -> 1551293.728 | R135: VTRHH | S135: =(Q129^2*S133)+(S129-Q123)^2*Q133 -> 1680011.108 | T135: VTRLL | U135: :
P136: : | Q136: =(Q129^2*S132)+(S129-Q123)^2*Q133 -> 1680011.108 | R136: VTRHL | S136: =Q129^2*S133+(S129-Q123)^2*Q132 -> 1551293.728 | T136: VTRLH | U136: :
P137: : | Q137: =SQRT(Q135) -> 1245.509425 | R137: STRHH | S137: =SQRT(S135) -> 1296.152425 | T137: STRLL | U137: :
P138: : | Q138: =SQRT(Q136) -> 1296.152425 | R138: STRHL | S138: =SQRT(S136) -> 1245.509425 | T138: STRLH | U138: :
P139: : | Q139: =0.66*Q137+0.17*Q138+0.17*S138 -> 1254.118735 | R139: STRO | S139: =0.66*S137+0.17*Q138+0.17*S138 -> 1287.543115 | T139: STRP | U139: :
P140: : | Q140: - | U140: :
P141: : | Q141: Calculation of NR and for Z values | U141: :
P158: : | Q158: - | U158: :
P159: : | Q159: =S120 -> 109.1467269 | R159: MP | S159: =+Q165-Q163 -> -11.03004537 | T159: ENR_MNR | U159: :
P160: : | Q160: =Q120 -> 304.5625 | R160: MY | S160: =+Q137 -> 1245.509425 | T160: STRHH | U160: :
P161: : | Q161: =+Q164+0.33*(S165-S164) -> 33216.67395 | R161: MTR | S161: =+S137 -> 1296.152425 | T161: STRLL | U161: :
P162: : | Q162: =+D85 -> 30069.37861 | R162: MTC | S162: =+Q138 -> 1296.152425 | T162: STRHL | U162: :
P163: : | Q163: =Q161-Q162-(SUM(D88:D91)) -> -7819.882773 | R163: MNR | S163: =+S138 -> 1245.509425 | T163: STRLH | U163: :
P164: : | Q164: =Q129*S129 -> 33205.64391 | R164: ETR | S164: =Q139 -> 1254.118735 | T164: STRO | U164: :
P165: : | Q165: =Q164-Q162-(SUM(D88:D91)) -> -7830.912818 | R165: ENR | S165: =S139 -> 1287.543115 | T165: STRP | U165: :
P166: : | Q166: - | U166: :
Q167: =+D114>=Q163 -> TRUE | R167: =ABS((D114-Q165)/IF(Q167,S164,S165)) -> 1.5 | S167: =MIN(2.5,ABS((D114-(Q163+S159*ABS(D114-Q163)/ABS(IF(Q167,S164+S159,S165-S159))*MIN(1,R167)))/(MIN(1.52,R167)/1.52*IF(Q167,S160,S161)+(1.52-MIN(1.52,R167))/3.04*S162+(1.52-MIN(1.52,R167))/3.04*S163))) -> 1.51443052 | T167: =1/(1+(0.2316419*S167)) -> 0.7402989944 | U167: =0.398942281*((2.71828)^((-(S167^2)/2))) -> 0.1267311127 | V167: =U167*(0.31938153*T167-0.356563782*T167^2+1.781477937*T167^3-1.821255978*T167^4+1.330274429*T167^5) -> 0.06495841526 | W167: =+E114>=Q163 -> TRUE | X167: =ABS((E114-Q165)/IF(W167,S164,S165)) -> 1 | Y167: =MIN(2.5,ABS((E114-(Q163+S159*ABS(E114-Q163)/ABS(IF(W167,S164+S159,S165-S159))*MIN(1,X167)))/(MIN(1.52,X167)/1.52*IF(W167,S160,S161)+(1.52-MIN(1.52,X167))/3.04*S162+(1.52-MIN(1.52,X167))/3.04*S163))) -> 0.9999574951 | Z167: =1/(1+(0.2316419*Y167)) -> 0.8119308008 | AA167: =0.398942281*((2.71828)^((-(Y167^2)/2))) -> 0.2419810912 | AB167: =AA167*(0.31938153*Z167-0.356563782*Z167^2+1.781477937*Z167^3-1.821255978*Z167^4+1.330274429*Z167^5) -> 0.1586655983 | AC167: =+F114>=Q163 -> TRUE | AD167: =ABS((F114-Q165)/IF(AC167,S164,S165)) -> 0.5 | AE167: =MIN(2.5,ABS((F114-(Q163+S159*ABS(F114-Q163)/ABS(IF(AC167,S164+S159,S165-S159))*MIN(1,AD167)))/(MIN(1.52,AD167)/1.52*IF(AC167,S160,S161)+(1.52-MIN(1.52,AD167))/3.04*S162+(1.52-MIN(1.52,AD167))/3.04*S163))) -> 0.4901082284 | AF167: =1/(1+(0.2316419*AE167)) -> 0.8980452777 | AG167: =0.398942281*((2.71828)^((-(AE167^2)/2))) -> 0.3537936347 | AH167: =AG167*(0.31938153*AF167-0.356563782*AF167^2+1.781477937*AF167^3-1.821255978*AF167^4+1.330274429*AF167^5) -> 0.3120286824
S168: =MIN(2.5,ABS((D114-Q165)/(MIN(1.52,R167)/1.52*IF(Q167,S160,S161)+(1.52-MIN(1.52,R167))/3.04*S162+(1.52-MIN(1.52,R167))/3.04*S163))) -> 1.5099645 | T168: 0.7408663886 | U168: 0.1275898878 | V168: 0.06552631637 | Y168: =MIN(2.5,ABS((E114-Q165)/(MIN(1.52,X167)/1.52*IF(W167,S160,S161)+(1.52-MIN(1.52,X167))/3.04*S162+(1.52-MIN(1.52,X167))/3.04*S163))) -> 0.9999574951 | Z168: 0.8119308008 | AA168: 0.2419810912 | AB168: 0.1586655983 | AE168: =MIN(2.5,ABS((F114-Q165)/(MIN(1.52,AD167)/1.52*IF(AC167,S160,S161)+(1.52-MIN(1.52,AD167))/3.04*S162+(1.52-MIN(1.52,AD167))/3.04*S163))) -> 0.4966801032 | AF168: =1/(1+(0.2316419*AE168)) -> 0.8968192239 | AG168: =0.398942281*((2.71828)^((-(AE168^2)/2))) -> 0.3526483087 | AH168: =AG168*(0.31938153*AF168-0.356563782*AF168^2+1.781477937*AF168^3-1.821255978*AF168^4+1.330274429*AF168^5) -> 0.3097073492
Q169: =+G114>=Q163 -> FALSE | R169: =ABS((G114-Q165)/IF(Q169,S164,S165)) -> 0 | S169: =MIN(2.5,ABS((G114-(Q163+S159*ABS(G114-Q163)/ABS(IF(Q169,S164+S159,S165-S159))*MIN(1,R169)))/(MIN(1.52,R169)/1.52*IF(Q169,S160,S161)+(1.52-MIN(1.52,R169))/3.04*S162+(1.52-MIN(1.52,R169))/3.04*S163))) -> 0.008679396414 | T169: 0.9979935222 | U169: 0.3989272547 | V169: 0.4965374454 | W169: =+H114>=Q163 -> FALSE | X169: =ABS((H114-Q165)/IF(W169,S164,S165)) -> 0.5 | Y169: =MIN(2.5,ABS((H114-(Q163+S159*ABS(H114-Q163)/ABS(IF(W169,S164+S159,S165-S159))*MIN(1,X169)))/(MIN(1.52,X169)/1.52*IF(W169,S160,S161)+(1.52-MIN(1.52,X169))/3.04*S162+(1.52-MIN(1.52,X169))/3.04*S163))) -> 0.5097255096 | Z169: 0.8943953547 | AA169: 0.3503409374 | AB169: 0.3051219048 | AC169: =+I114>=Q163 -> FALSE | AD169: =ABS((I114-Q165)/IF(AC169,S164,S165)) -> 1 | AE169: =MIN(2.5,ABS((I114-(Q163+S159*ABS(I114-Q163)/ABS(IF(AC169,S164+S159,S165-S159))*MIN(1,AD169)))/(MIN(1.52,AD169)/1.52*IF(AC169,S160,S161)+(1.52-MIN(1.52,AD169))/3.04*S162+(1.52-MIN(1.52,AD169))/3.04*S163))) -> 1.000041405 | AF169: =1/(1+(0.2316419*AE169)) -> 0.8119179875 | AG169: =0.398942281*((2.71828)^((-(AE169^2)/2))) -> 0.2419607875 | AH169: =AG169*(0.31938153*AF169-0.356563782*AF169^2+1.781477937*AF169^3-1.821255978*AF169^4+1.330274429*AF169^5) -> 0.1586452946
S170: =MIN(2.5,ABS((G114-Q165)/(MIN(1.52,R169)/1.52*IF(Q169,S160,S161)+(1.52-MIN(1.52,R169))/3.04*S162+(1.52-MIN(1.52,R169))/3.04*S163))) -> 0 | T170: 1 | U170: 0.398942281 | V170: 0.5000000002 | Y170: =MIN(2.5,ABS((H114-Q165)/(MIN(1.52,X169)/1.52*IF(W169,S160,S161)+(1.52-MIN(1.52,X169))/3.04*S162+(1.52-MIN(1.52,X169))/3.04*S163))) -> 0.5032766608 | Z170: 0.8955919272 | AA170: 0.3514871433 | AB170: 0.307384905 | AE170: =MIN(2.5,ABS((I114-Q165)/(MIN(1.52,AD169)/1.52*IF(AC169,S160,S161)+(1.52-MIN(1.52,AD169))/3.04*S162+(1.52-MIN(1.52,AD169))/3.04*S163))) -> 1.000041405 | AF170: =1/(1+(0.2316419*AE170)) -> 0.8119179875 | AG170: =0.398942281*((2.71828)^((-(AE170^2)/2))) -> 0.2419607875 | AH170: =AG170*(0.31938153*AF170-0.356563782*AF170^2+1.781477937*AF170^3-1.821255978*AF170^4+1.330274429*AF170^5) -> 0.1586452946
Q171: =+J114>=Q163 -> FALSE | R171: =ABS((J114-Q165)/IF(Q171,S164,S165)) -> 1.5 | S171: =MIN(2.5,ABS((J114-(Q163+S159*ABS(J114-Q163)/ABS(IF(Q171,S164+S159,S165-S159))*MIN(1,R171)))/(MIN(1.52,R171)/1.52*IF(Q171,S160,S161)+(1.52-MIN(1.52,R171))/3.04*S162+(1.52-MIN(1.52,R171))/3.04*S163))) -> 1.486199945 | T171: 0.7439002897 | U171: 0.13221407 | V171: 0.0686132034 | W171: =0>=Q163 -> TRUE | X171: =ABS((0-Q165)/IF(W171,S164,S165)) -> 6.244155836 | Y171: =MIN(2.5,ABS((0-(Q163+S159*ABS(0-Q163)/ABS(IF(W171,S164+S159,S165-S159))*MIN(1,X171)))/(MIN(1.52,X171)/1.52*IF(W171,S160,S161)+(1.52-MIN(1.52,X171))/3.04*S162+(1.52-MIN(1.52,X171))/3.04*S163))) -> 2.5 | Z171: 0.6332702121 | AA171: 0.01752833737 | AB171: 0.006209692916
S172: =MIN(2.5,ABS((J114-Q165)/(MIN(1.52,R171)/1.52*IF(Q171,S160,S161)+(1.52-MIN(1.52,R171))/3.04*S162+(1.52-MIN(1.52,R171))/3.04*S163))) -> 1.490419807 | T172: 0.7433597481 | U172: 0.1313863072 | V172: 0.06805702494 | Y172: =MIN(2.5,ABS((0-Q165)/(MIN(1.52,X171)/1.52*IF(W171,S160,S161)+(1.52-MIN(1.52,X171))/3.04*S162+(1.52-MIN(1.52,X171))/3.04*S163))) -> 2.5 | Z172: 0.6332702121 | AA172: 0.01752833737 | AB172: 0.006209692916

Sheet Bermuda
I1: Return To Main
A3: Hybrid Bermuda Pasture Per Acre Cost Detail
A5: Item | E5: Unit | F5: Quantity | G5: Price | H5: Total
A6: Prorated Establishment Cost | E6: YRS. | F6: 10 | G6: 0 | H6: =+G6/F6 -> 0
A7: Fertilizer
A8: Nitrogen | E8: LBS. | F8: 150 | G8: 0.6 | H8: =+G8*F8 -> 90
A9: Phosphorous (P205) | E9: LBS. | F9: 50 | G9: 0.5 | H9: 25
A10: Potassium (K20) | E10: LBS. | F10: 75 | G10: 0.42 | H10: 31.5
A11: Lime | E11: TONS | F11: 0.25 | G11: 40 | H11: 10
A12: Machinery Repairs & Maintenance | E12: ACRE | F12: 1 | G12: 1.74 | H12: 1.74
A13: Machinery Fuel | E13: Gallons | F13: 1.45 | G13: 3 | H13: 4.35
A14: Labor | E14: Hours | F14: 0.33 | G14: 9 | H14: 2.97
A15: Other | E15: Acre | F15: 0 | G15: 2 | H15: 0
A16: TOTAL COST PER ACRE | H16: =+SUM(H6:H15) -> 165.56

Sheet Fescue
I1: Return To Main
A3: Fescue Pasture Per Acre Cost Detail
A5: Item | E5: Unit | F5: Quantity | G5: Price | H5: Total
A6: Prorated Establishment Cost | E6: YRS. | F6: 10 | G6: 0 | H6: =+G6/F6 -> 0
A7: Fertilizer
A8: Nitrogen | E8: LBS. | F8: 130 | G8: 0.44 | H8: =+G8*F8 -> 57.2 | I8: 530 ton
A9: Phosphorous (P2O5) | E9: LBS. | F9: 40 | G9: 0.38 | H9: 15.2
A10: Potash (K2O) | E10: LBS. | F10: 60 | G10: 0.29 | H10: 17.4
A11: Lime | E11: TONS | F11: 0.25 | G11: 40 | H11: 10
A12: Machinery Repairs & Maintenance | E12: ACRE | F12: 1 | G12: 1.73 | H12: 1.73
A13: Machinery Fuel | E13: Gallons | F13: 1.45 | G13: 2.25 | H13: 3.2625
A14: Labor | E14: Hours | F14: 0.33 | G14: 9 | H14: 2.97
A15: Other | E15: Acre | F15: 0 | G15: 2 | H15: 0
A16: TOTAL COST PER ACRE | H16: =+SUM(H6:H15) -> 107.7625

Sheet Winter_Grazing
I1: Return To Main
A3: Winter Grazing Per Acre Cost Detail
A5: Item | E5: Unit | F5: Quantity | G5: Price | H5: Total
A6: Wheat | E6: Bushel | F6: 0 | G6: 10.5 | H6: =+G6*F6 -> 0
A7: Rye | E7: Bushel | F7: 0 | G7: 13.5 | H7: =+G7*F7 -> 0
A8: Ryegrass | E8: Lbs. | F8: 30 | G8: 0.5 | H8: =+G8*F8 -> 15
A9: Clover | E9: Lbs. | F9: 0 | G9: 1.35 | H9: =+G9*F9 -> 0
A10: Fertilizer
A11: Nitrogen | E11: LBS. | F11: 150 | G11: 0.6 | H11: 90
A12: Phosphorous (P2O5) | E12: LBS. | F12: 60 | G12: 0.5 | H12: 30
A13: Potash (K2O) | E13: LBS. | F13: 90 | G13: 0.42 | H13: 37.8
A14: Lime | E14: TONS | F14: 0 | G14: 40 | H14: 0
A15: Machinery Repairs & Maintenance | E15: ACRE | F15: 1 | G15: 2.68 | H15: 2.68
A16: Machinery Fuel | E16: Gallons | F16: 1.45 | G16: 2.25 | H16: 3.2625
A17: Labor | E17: Hours | F17: 0.6 | G17: 9 | H17: 5.4
A18: Other | E18: Acre | F18: 0 | G18: 2 | H18: 0
A19: TOTAL COST PER ACRE | H19: =+SUM(H7:H18) -> 184.1425

Sheet Summer_Annual
I1: Return To Main
A3: Summer Annual Per Acre Cost Detail
A5: Item | E5: Unit | F5: Quantity | G5: Price | H5: Total
A6: Wheat | E6: Bushel | F6: 1 | G6: 10.5 | H6: =+G6*F6 -> 10.5
A7: Rye | E7: Bushel | F7: 1 | G7: 13.5 | H7: =+G7*F7 -> 13.5
A8: Ryegrass | E8: Lbs. | F8: 15 | G8: 0.35 | H8: =+G8*F8 -> 5.25
A9: Clover | E9: Lbs. | F9: 0 | G9: 1.35 | H9: =+G9*F9 -> 0
A10: Fertilizer
A11: Nitrogen | E11: LBS. | F11: 150 | G11: 0.44 | H11: =+G11*F11 -> 66
A12: Phosphorous (P2O5) | E12: LBS. | F12: 60 | G12: 0.38 | H12: 22.8
A13: Potash (K2O) | E13: LBS. | F13: 90 | G13: 0.29 | H13: 26.1
A14: Lime | E14: TONS | F14: 0 | G14: 40 | H14: 0
A15: Machinery Repairs & Maintenance | E15: ACRE | F15: 2 | G15: 3.5 | H15: 7
A16: Machinery Fuel | E16: Gallons | F16: 3 | G16: 2.25 | H16: 6.75
A17: Other | E17: Acre | F17: 0 | G17: 2 | H17: 0
A18: Other | E18: Acre | F18: 0 | G18: 2 | H18: 0
A19: TOTAL COST PER ACRE | H19: =+SUM(H7:H18) -> 147.4

Sheet Hay
I1: Return To Main
A2: Tons per Acre | C2: 6
A3: Hybrid Bermuda Hay Per Acre Cost Detail
A5: Item | E5: Unit | F5: Quantity | G5: Price | H5: Total
A6: Prorated Establishment Cost | E6: YRS. | F6: 10 | G6: 0 | H6: =+G6/F6 -> 0
A7: Fertilizer
A8: Nitrogen | E8: LBS. | F8: 300 | G8: 0.44 | H8: =+G8*F8 -> 132
A9: Phosphorous (P2O5) | E9: LBS. | F9: 180 | G9: 0.38 | H9: 68.4
A10: Potash (K2O) | E10: LBS. | F10: 180 | G10: 0.29 | H10: 52.2
A11: Lime | E11: TONS | F11: 0.5 | G11: 40 | H11: 20
A12: Herbicide | E12: Acre | F12: 1 | G12: 6.24 | H12: =+G12*F12 -> 6.24
A13: Machinery Repairs & Maintenance | E13: ACRE | F13: 1 | G13: =15.06+11.42 -> 26.48 | H13: 26.48
A14: Machinery Fuel | E14: Gallons | F14: 25.6448 | G14: 2.25 | H14: 57.7008
A15: Labor | E15: Hours | F15: 4.268 | G15: 9 | H15: 38.412
A16: Other | E16: Acre | F16: 0 | G16: 2 | H16: 0
A17: TOTAL COST PER ACRE | H17: =+SUM(H6:H16) -> 401.4328
A18: TOTAL VARIABLE COST PER TON | H18: =+hay/hay_tons -> 66.90546667
A20: TOTAL FIXED COSTS | H20: =+equip_fc -> 1984
A21: TOTAL FIXED COSTS PER TON | H21: =IF(Main!F51>0,H20/(hay_tons*Main!F51),"N/A") -> N/A
A23: TOTAL HAY COSTS PER TON | H23: =+IF(H21<>"N/A",H21+H18,"N/A") -> N/A

Sheet Feed
H1: Return To Main
A2: Supplemental Feed for Cows
B3: Unit | C3: Days fed | D3: Pounds Fed per Day | E3: Total Pounds Fed | F3: $/unit | G3: Cost/Cow
A4: 50:50 Corn Gluten:Soy Hull Pellets | B4: Tons | C4: 120 | D4: 6 | E4: =+D4*C4 -> 720 | F4: 275 | G4: =+(E4/2000)*F4 -> 99
C5: 0 | D5: 22 | E5: 0 | F5: 90 | G5: =+(E5/2000)*F5 -> 0
D6: 0 | E6: 0 | F6: 0 | G6: 0
D7: 0 | E7: 0 | F7: 0 | G7: 0
D8: 0 | E8: 0 | F8: 0 | G8: 0
D9: 0 | E9: 0 | F9: 0 | G9: 0
D10: 0 | E10: 0 | F10: 0 | G10: 0
A11: Total Feed for Cows | B11: Tons | E11: =SUM(E4:E10) -> 720 | F11: =+G11/E11 -> 0.1375 | G11: =SUM(G4:G10) -> 99
A15: Supplemental Feed for Replacement Heifers
B16: Unit | C16: Days fed | D16: Pounds Fed per Day | E16: Total Pounds Fed | F16: $/unit | G16: Cost/Cow
A17: Corn gluten | B17: Tons | C17: 0 | D17: 6 | E17: =+D17*C17 -> 0 | F17: 275 | G17: =+(E17/2000)*F17 -> 0
C18: 0 | D18: 22 | E18: 0 | F18: 90 | G18: =+(E18/2000)*F18 -> 0
D19: 0 | E19: 0 | F19: 0 | G19: 0
D20: 0 | E20: 0 | F20: 0 | G20: 0
D21: 0 | E21: 0 | F21: 0 | G21: 0
D22: 0 | E22: 0 | F22: 0 | G22: 0
D23: 0 | E23: 0 | F23: 0 | G23: 0
A24: Total Feed for Replacements | B24: Tons | E24: =SUM(E17:E23) -> 0 | F24: =+G24/E24 ->  | G24: =SUM(G17:G23) -> 0
A27: Supplemental Feed for Herd Bulls
B28: Unit | C28: Days fed | D28: Pounds Fed per Day | E28: Total Pounds Fed | F28: $/unit | G28: Cost/Cow
A29: 50:50 Corn Gluten:Soy Hull Pellets | B29: Tons | C29: 120 | D29: 6 | E29: =+D29*C29 -> 720 | F29: 275 | G29: =+(E29/2000)*F29 -> 99
C30: 0 | D30: 22 | E30: 0 | F30: 90 | G30: =+(E30/2000)*F30 -> 0
D31: 0 | E31: 0 | F31: 0 | G31: 0
D32: 0 | E32: 0 | F32: 0 | G32: 0
D33: 0 | E33: 0 | F33: 0 | G33: 0
D34: 0 | E34: 0 | F34: 0 | G34: 0
D35: 0 | E35: 0 | F35: 0 | G35: 0
A36: Total Feed for Herd Bulls | B36: Tons | E36: =SUM(E29:E35) -> 720 | F36: =+G36/E36 -> 0.1375 | G36: =SUM(G29:G35) -> 99
A39: Supplemental Feed for Calves
B40: Unit | C40: Days fed | D40: Pounds Fed per Day | E40: Total Pounds Fed | F40: $/unit | G40: Cost/Cow
A41: Cracked Corn | B41: Tons | C41: 120 | D41: 2 | E41: =+D41*C41 -> 240 | F41: 325 | G41: =+(E41/2000)*F41 -> 39
C42: 0 | D42: 22 | E42: 0 | F42: 90 | G42: =+(E42/2000)*F42 -> 0
D43: 0 | E43: 0 | F43: 0 | G43: 0
D44: 0 | E44: 0 | F44: 0 | G44: 0
D45: 0 | E45: 0 | F45: 0 | G45: 0
D46: 0 | E46: 0 | F46: 0 | G46: 0
D47: 0 | E47: 0 | F47: 0 | G47: 0
A48: Total Feed for Calves | B48: Tons | E48: =SUM(E41:E47) -> 240 | F48: =+G48/E48 -> 0.1625 | G48: =SUM(G41:G47) -> 39

Sheet Vet
H2: Return to Main Page
A3: Veterinary Expenses for Cow Herd
A4: Item | C4: Item | D4: Unit | E4: Number Applications | F4: $/Applic. | G4: Total Cost/Cow
A5: IBR,BVD,5-way Lepto, Vibrio | B5: 2 | C5: =+IF(B5=1,#REF!,IF(B5=2,#REF!,IF(B5=3,#REF!,IF(B5=4,#REF!,IF(B5=5,#REF!))))) ->  | D5: Cow | E5: 1 | F5: 4 | G5: =+F5*E5 -> 4
A6: Deworm | B6: 1 | C6: =+IF(B6=1,#REF!,IF(B6=2,#REF!,IF(B6=3,#REF!,IF(B6=4,#REF!,IF(B6=5,#REF!))))) ->  | D6: Cow | E6: 1 | F6: 3 | G6: 3
A7: Delice | B7: 3 | C7: =+IF(B7=1,#REF!,IF(B7=2,#REF!,IF(B7=3,#REF!,IF(B7=4,#REF!,IF(B7=5,#REF!))))) ->  | D7: Cow | E7: 2 | F7: 2 | G7: 4
A8: Fly Tags | B8: 4 | C8: =+IF(B8=1,#REF!,IF(B8=2,#REF!,IF(B8=3,#REF!,IF(B8=4,#REF!,IF(B8=5,#REF!))))) ->  | D8: Cow | E8: 2 | F8: 0.5 | G8: 1
A9: Preg Check | B9: 5 | C9: =+IF(B9=1,#REF!,IF(B9=2,#REF!,IF(B9=3,#REF!,IF(B9=4,#REF!,IF(B9=5,#REF!))))) ->  | D9: Cow | E9: 1 | F9: 2 | G9: 2
A10: Other | B10: 5 | C10: =+IF(B10=1,#REF!,IF(B10=2,#REF!,IF(B10=3,#REF!,IF(B10=4,#REF!,IF(B10=5,#REF!))))) ->  | D10: Cow | E10: 1 | F10: 0 | G10: 0
A11: Total Vet Expenses for Cows | G11: =+SUM(G5:G9) -> 14
A14: Veterinary Expenses for Replacement Heifers
A15: Item | C15: Item | D15: Unit | E15: Number Applications | F15: $/Applic. | G15: Total Cost/Cow
A16: 5-way Lepto | B16: 2 | C16: =+IF(B16=1,#REF!,IF(B16=2,#REF!,IF(B16=3,#REF!,IF(B16=4,#REF!,IF(B16=5,#REF!))))) ->  | D16: Heifer | E16: 2 | F16: 2 | G16: =+F16*E16 -> 4
A17: Synchronization | B17: 1 | C17: =+IF(B17=1,#REF!,IF(B17=2,#REF!,IF(B17=3,#REF!,IF(B17=4,#REF!,IF(B17=5,#REF!))))) ->  | D17: Heifer | E17: 1 | F17: 8 | G17: =+F17*E17 -> 8
B18: 3 | C18: =+IF(B18=1,#REF!,IF(B18=2,#REF!,IF(B18=3,#REF!,IF(B18=4,#REF!,IF(B18=5,#REF!))))) ->  | D18: Heifer | E18: 0 | F18: 1 | G18: =+F18*E18 -> 0
B19: 4 | C19: =+IF(B19=1,#REF!,IF(B19=2,#REF!,IF(B19=3,#REF!,IF(B19=4,#REF!,IF(B19=5,#REF!))))) ->  | D19: Heifer | E19: 1 | F19: 4 | G19: =+F19*E19 -> 4
B20: 5 | C20: =+IF(B20=1,#REF!,IF(B20=2,#REF!,IF(B20=3,#REF!,IF(B20=4,#REF!,IF(B20=5,#REF!))))) ->  | D20: Heifer | G20: =+F20*E20 -> 0
A21: Total Vet Expenses for Replacements | G21: =+SUM(G16:G20) -> 16
A24: Veterinary Expenses for Herd Bulls
A25: Item | C25: Item | D25: Unit | E25: Number Applications | F25: $/Applic. | G25: Total Cost/Cow
A26: IBR,BVD,5-way Lepto, Vibrio | B26: 2 | C26: =+IF(B26=1,#REF!,IF(B26=2,#REF!,IF(B26=3,#REF!,IF(B26=4,#REF!,IF(B26=5,#REF!))))) ->  | D26: Bull | E26: 1 | F26: 4 | G26: =+F26*E26 -> 4
A27: Breeding Soundness Exam | B27: 1 | C27: =+IF(B27=1,#REF!,IF(B27=2,#REF!,IF(B27=3,#REF!,IF(B27=4,#REF!,IF(B27=5,#REF!))))) ->  | D27: Bull | E27: 1 | F27: 35 | G27: =+F27*E27 -> 35
A28: Deworm | B28: 3 | C28: =+IF(B28=1,#REF!,IF(B28=2,#REF!,IF(B28=3,#REF!,IF(B28=4,#REF!,IF(B28=5,#REF!))))) ->  | D28: Bull | E28: 2 | F28: 3 | G28: =+F28*E28 -> 6
A29: Delice | B29: 4 | C29: =+IF(B29=1,#REF!,IF(B29=2,#REF!,IF(B29=3,#REF!,IF(B29=4,#REF!,IF(B29=5,#REF!))))) ->  | D29: Bull | E29: 1 | F29: 2 | G29: =+F29*E29 -> 2
B30: 5 | C30: =+IF(B30=1,#REF!,IF(B30=2,#REF!,IF(B30=3,#REF!,IF(B30=4,#REF!,IF(B30=5,#REF!))))) ->  | D30: Bull | G30: =+F30*E30 -> 0
A31: Total Vet Expenses for Bulls | G31: =+SUM(G26:G30) -> 47
A33: Veterinary Expenses for Calves
A34: Item | C34: Item | D34: Unit | E34: Number Applications | F34: $/Applic. | G34: Total Cost/Cow
A35: Implant | B35: 2 | C35: =+IF(B35=1,#REF!,IF(B35=2,#REF!,IF(B35=3,#REF!,IF(B35=4,#REF!,IF(B35=5,#REF!))))) ->  | D35: Calf | E35: 0.5 | F35: 1 | G35: =+F35*E35 -> 0.5
A36: IBR,PI3,BVD,BRSV | B36: 1 | C36: =+IF(B36=1,#REF!,IF(B36=2,#REF!,IF(B36=3,#REF!,IF(B36=4,#REF!,IF(B36=5,#REF!))))) ->  | D36: Calf | E36: 2 | F36: 3 | G36: =+F36*E36 -> 6
B37: 3 | C37: =+IF(B37=1,#REF!,IF(B37=2,#REF!,IF(B37=3,#REF!,IF(B37=4,#REF!,IF(B37=5,#REF!))))) ->  | D37: Calf | E37: 0 | F37: 1 | G37: =+F37*E37 -> 0
B38: 4 | C38: =+IF(B38=1,#REF!,IF(B38=2,#REF!,IF(B38=3,#REF!,IF(B38=4,#REF!,IF(B38=5,#REF!))))) ->  | D38: Calf | E38: 0 | F38: 4 | G38: =+F38*E38 -> 0
B39: 5 | C39: =+IF(B39=1,#REF!,IF(B39=2,#REF!,IF(B39=3,#REF!,IF(B39=4,#REF!,IF(B39=5,#REF!))))) ->  | D39: Calf | G39: =+F39*E39 -> 0
A40: Total Vet Expenses for Calves | G40: =+SUM(G35:G39) -> 6.5

Sheet Auction
B3: Auction & Hauling Cost Detail | I3: Return to Main Budget
B5: ITEM | E5: UNIT | F5: QUANTITY | G5: PRICE | H5: AMOUNT
B6: Commission | E6: % | F6: =+Main!C103*Main!G103 -> 674.3869 | G6: 0.03 | H6: =+G6*F6 -> 20.231607
B7: Yardage | E7: Day | F7: 1 | G7: 1 | H7: =+G7*F7 -> 1
B8: Hauling | E8: MILES | F8: 100 | G8: 2.5 | H8: =+(F8*G8)/24 -> 10.41666667
B9: Checkoff | E9: Head | F9: 1 | G9: 1 | H9: =+G9*F9 -> 1
B10: Other | E10: Head | F10: 1 | G10: 1 | H10: =+G10*F10 -> 1
B12: Total Auction & Hauling Cost | H12: =+SUM(H6:H10) -> 33.64827367

Sheet Lvstk_Facil
B3: INVESTMENT, ANNUAL FIXED COSTS, AND ANNUAL PAYMENTS
B5: Return to Main Budget
B6: Item | D6: Number | E6: $/Unit | F6: Total Cost | G6: Salvage Value | H6: Years of Useful Life | I6: Annual Depreciation | J6: Percent Financed | K6: Amount Financed | L6: Interest Rate | M6: Years Financed | N6: Annual Payment
B7: LIVESTOCK
B8: Purchased Females | D8: 50 | E8: 1000 | F8: =D8*E8 -> 50000 | G8: =+((cow_wt*cow_price)*(100%-cow_death))*D8 -> 29645 | H8: =1/cow_cull -> 6.666666667 | I8: =+(F8-G8)/H8 -> 3053.25 | J8: 0.25 | K8: =+J8*F8 -> 12500 | L8: 0.08 | M8: 5 | N8: =-PMT(L8,M8,K8) -> 3130.705682
B9: Bulls | D9: 2 | E9: 2500 | F9: =D9*E9 -> 5000 | G9: =+(bull_wt*bull_price)*bulls -> 2628 | H9: =1/bull_cull -> 4 | I9: =+(F9-G9)/H9 -> 593 | J9: 0.25 | K9: =+J9*F9 -> 1250 | L9: 0.08 | M9: 5 | N9: =-PMT(L9,M9,K9) -> 313.0705682
B10: TOTAL LIVESTOCK | F10: =+SUM(F8:F9) -> 55000 | G10: =+SUM(G8:G9) -> 32273 | I10: =+SUM(I8:I9) -> 3646.25 | K10: =+SUM(K8:K9) -> 13750 | N10: =SUM(N8:N9) -> 3443.77625
B12: BUILDINGS & FACILITIES
B13: Fences (Miles) | D13: =+(7379+9261+4174+2952+3704)/5280 -> 5.202651515 | E13: 1925 | F13: =+IF(D13<>0,(D13*E13),0) -> 10015.10417 | G13: 0 | H13: 30 | I13: =+(F13-G13)/H13 -> 333.8368056 | J13: 0 | K13: =+J13*F13 -> 0 | L13: 0.08 | M13: 20 | N13: =-PMT(L13,M13,K13) -> 0
B14: Head Gate | D14: 1 | E14: 400 | F14: =+IF(D14<>0,(D14*E14),0) -> 400 | G14: 0 | H14: 10 | I14: =F14/H14 -> 40 | J14: 0 | K14: 0 | L14: 0.08 | M14: 20 | N14: 0
B15: Chutes & Pens | D15: 1 | E15: 8500 | F15: 8500 | G15: =+F15*0.2 -> 1700 | H15: 20 | I15: 425 | J15: 0 | K15: 0 | L15: 0.08 | M15: 10 | N15: 0
B16: Barn | D16: 1 | E16: 15000 | F16: 15000 | G16: 3000 | H16: 30 | I16: 500 | J16: 0 | K16: 0 | L16: 0.08 | M16: 20 | N16: 0
B17: Hay Racks | D17: 1 | E17: 1000 | F17: 1000 | G17: 0 | H17: 7 | I17: 142.8571429 | J17: 0 | K17: 0 | L17: 0.08 | M17: 10 | N17: 0
B18: Feed Troughs | D18: 1 | E18: 1200 | F18: 1200 | G18: 240 | H18: 15 | I18: 80 | J18: 0 | K18: 0 | L18: 0.08 | M18: 10 | N18: 0
B19: Miscellanous Equipment | D19: 1 | E19: 1000 | F19: 1000 | G19: 200 | H19: 20 | I19: 50 | J19: 0 | K19: 0 | L19: 0.08 | M19: 15 | N19: 0
B20: Other | D20: 0 | F20: 0 | G20: 0 | H20: 15 | I20: 0 | J20: 0 | K20: 0 | L20: 0.08 | M20: 10 | N20: 0
B21: Other | D21: 0 | F21: 0 | G21: 0 | H21: 15 | I21: 0 | J21: 0 | K21: 0 | L21: 0.08 | M21: 10 | N21: 0
B22: Other | D22: 0 | F22: 0 | G22: 0 | H22: 20 | I22: 0 | J22: 0 | K22: 0 | L22: 0.08 | M22: 15 | N22: 0
B23: Other | F23: 0 | G23: 0 | H23: 5 | I23: 0 | J23: 0 | K23: 0 | L23: 0.08 | M23: 5 | N23: 0
B24: TOTAL BUILDINGS & FACILITIES | F24: =+SUM(F13:F23) -> 37115.10417 | G24: =+SUM(G13:G23) -> 5140 | I24: =+SUM(I13:I23) -> 1571.693948 | K24: =+SUM(K13:K23) -> 0 | N24: =+SUM(N13:N23) -> 0
B27: LAND
B28: LAND | D28: 63 | E28: 1000 | F28: =+E28*D28 -> 63000 | G28: 0 | I28: 0 | J28: 0 | K28: =+J28*F28 -> 0 | L28: 0.08 | M28: 20 | N28: =PMT(Lvstk_Facil!L28,Lvstk_Facil!M28,-K28) -> 0
B31: TOTALS FOR FIXED COSTS
B32: Average Purchased Livestock Investment | E32: =+((lvstk_inv+G10)/2) -> 43636.5
B33: Interest to Charge on Average Livestock Investment | E33: 0.08
B34: Total Livestock Fixed Cost | E34: =+livestock_facil_print*E32 -> 3490.92
B36: Average Buildings & Facilities Investment | E36: =+(F24+G24)/2 -> 21127.55208
B37: Interest on Average buildings & Facilities Investment | E37: 0.08
B38: Total Buildings & Facilities Fixed Cost | E38: =+(facil_int*facil_avginv)+build_dep -> 3261.898115
B41: Land Investment | E41: =+F28 -> 63000
B42: Interest on Land Investment | E42: =+land_int -> 0
B43: Total Land Fixed Cost | E43: =+land_int*E41 -> 0
B45: TOTAL ANNUAL FIXED COSTS | E45: =+lvstk_dep+build_dep+lvstk_fc+facil_fc+land_fc -> 11970.76206

Sheet Equipment
A1: Return to Main
A2: DETAIL FOR EQUIPMENT USED IN COW-CALF AND HAY OPERATIONS
A3: Item | B3: Cost | C3: Salvage Value | D3: Useful Life | E3: Depreciation | F3: % Used in Cow-Calf | G3: %Used in Hay | H3: Cow-Calf Avg Investment | I3: Hay Investment | J3: Cow-Calf Depreciation | K3: Hay Depreciation | L3: %Financed | M3: Interest Rate | N3: Years | O3: Total Payment | P3: % Cattle or Hay Payment
A4: 75 hp Tractor-2wd | B4: 37000 | C4: =+B4*0.2 -> 7400 | D4: 8 | E4: =+(B4-C4)/D4 -> 3700 | F4: 0.25 | G4: 0.25 | H4: =+((B4+C4)/2)*F4 -> 5550 | I4: =+((B4+C4)/2)*G4 -> 5550 | J4: =+F4*E4 -> 925 | K4: =+G4*E4 -> 925 | L4: 0 | M4: 0.08 | N4: 5 | O4: =-PMT(M4,N4,(B4*L4)) -> 0 | P4: =+O4*(F4+G4) -> 0
A5: 130 hp Tractor-MFWD | B5: 40000 | C5: =+B5*0.2 -> 8000 | D5: 8 | E5: =+(B5-C5)/D5 -> 4000 | F5: 0.1 | G5: 0.1 | H5: =+((B5+C5)/2)*F5 -> 2400 | I5: =+((B5+C5)/2)*G5 -> 2400 | J5: =+F5*E5 -> 400 | K5: =+G5*E5 -> 400 | L5: 0.5 | M5: 0.08 | N5: 5 | O5: =-PMT(M5,N5,(B5*L5)) -> 5009.129091 | P5: =+O5*(F5+G5) -> 1001.825818
A6: Front-end loader w/spear | B6: 5500 | C6: 1100 | D6: 8 | E6: 550 | F6: 0.25 | G6: 0.25 | H6: 825 | I6: 825 | J6: 137.5 | K6: 137.5 | L6: 0 | M6: 0.08 | N6: 5 | O6: 0 | P6: 0
A7: 7' Rotary Mower | B7: 3500 | C7: 700 | D7: 8 | E7: =+(B7-C7)/D7 -> 350 | F7: 0.25 | G7: 0.25 | H7: 525 | I7: 525 | J7: =+F7*E7 -> 87.5 | K7: =+G7*E7 -> 87.5 | L7: 0 | M7: 0.08 | N7: 5 | O7: =-PMT(M7,N7,(B7*L7)) -> 0 | P7: =+O7*(F7+G7) -> 0
A8: 14' Disk Harrow | B8: 9250 | C8: 1850 | D8: 10 | E8: 740 | F8: 0.1 | G8: 0 | H8: 555 | I8: 0 | J8: 74 | K8: 0 | L8: 0 | M8: 0.08 | N8: 5 | O8: 0 | P8: 0
A9: 12' Grain Drill | B9: 11500 | C9: 2300 | D9: 8 | E9: 1150 | F9: 0.1 | G9: 0 | H9: 690 | I9: 0 | J9: 115 | K9: 0 | L9: 0 | M9: 0.08 | N9: 5 | O9: 0 | P9: 0
A10: 8' Disc Mower | B10: 0 | C10: 0 | D10: 5 | E10: 0 | F10: 0.2 | G10: 0.8 | H10: 0 | I10: 0 | J10: 0 | K10: 0 | L10: 0 | M10: 0.08 | N10: 5 | O10: 0 | P10: 0
A11: 17' Double Hay Rake | B11: 0 | C11: 0 | D11: 8 | E11: 0 | F11: 0 | G11: 1 | H11: 0 | I11: 0 | J11: 0 | K11: 0 | L11: 0 | M11: 0.08 | N11: 5 | O11: 0 | P11: 0
A12: 17' Hay Tedder | B12: 0 | C12: 0 | D12: 8 | E12: 0 | F12: 0 | G12: 1 | H12: 0 | I12: 0 | J12: 0 | K12: 0 | L12: 0 | M12: 0.08 | N12: 5 | O12: 0 | P12: 0
A13: 20' Hay Trailer -2 | B13: 0 | C13: 0 | D13: 8 | E13: 0 | F13: 0.5 | G13: 0.5 | H13: 0 | I13: 0 | J13: 0 | K13: 0 | L13: 0 | M13: 0.08 | N13: 5 | O13: 0 | P13: 0
A14: Large Round Baler | B14: 0 | C14: 0 | D14: 5 | E14: =+(B14-C14)/D14 -> 0 | F14: 0 | G14: 1 | H14: 0 | I14: 0 | J14: =+F14*E14 -> 0 | K14: =+G14*E14 -> 0 | L14: 0.5 | M14: 0.08 | N14: 5 | O14: =-PMT(M14,N14,(B14*L14)) -> 0 | P14: =+O14*(F14+G14) -> 0
A15: Other 1 | H15: 0 | I15: 0
A16: Other 2 | H16: 0 | I16: 0
A17: Other 3 | H17: 0 | I17: 0
A18: Other 4 | H18: 0 | I18: 0
A19: Other 5 | H19: 0 | I19: 0
A20: Other 6 | H20: 0 | I20: 0
A21: Total | B21: =+SUM(B4:B20) -> 106750 | C21: =+SUM(C4:C20) -> 21350 | E21: =+SUM(E4:E20) -> 10490 | H21: =+SUM(H4:H20) -> 10545 | I21: =+SUM(I4:I20) -> 9300 | J21: =+SUM(J4:J20) -> 1739 | K21: =+SUM(K4:K20) -> 1550 | O21: =+SUM(O4:O20) -> 5009.129091 | P21: =+SUM(P4:P20) -> 1001.825818
A24: Average Cow Equipment Investment | D24: =+(cow_inv+cow_dep)/2 -> 6142
A25: Interest rate on Average Investment | D25: 0.08
A26: Interest on Average Cow Equipment Investment | D26: =+D25*D24 -> 491.36
A27: Total Cow Equipment Fixed Costs | D27: =+D26+cow_dep -> 2230.36
A29: Average Hay Equipment Investment | D29: =+(hay_inv+Hay_dep)/2 -> 5425
A30: Interest rate on Average Investment | D30: 0.08
A31: Interest on Average Hay Equipment Investment | D31: =+D30*D29 -> 434
A32: Total Hay Equipment Fixed Costs | D32: =+D31+Hay_dep -> 1984

Sheet Fixed_Cost (hidden)
B3: INVESTMENT AND ANNUAL FIXED COST
B4: (Check All Entries This Page)
B6: NO. OF C0WS: | H6: =+Main!H18 -> 50
B7: INTEREST RATE: | H7: 0.09
B9: ITEM | D9: NUMBER | E9: COST/HEAD | F9: NEW COST | G9: SALVAGE | H9: YEARS | I9: DEPR.
B10: COWS | D10: 60 | E10: 700 | F10: =D10*E10 -> 42000 | G10: =Main!H27*Main!H28*D10 -> 36300 | H10: =1/Main!H20 -> 6.666666667 | I10: =+(F10-G10)/H10 -> 855
B11: Purchased HEIFERS | D11: 0 | E11: 850 | F11: =D11*E11 -> 0 | G11: 0 | H11: 6 | I11: =+(F11-G11)/H11 -> 0
B12: BULLS | D12: =+Main!H29 -> 2 | E12: 1500 | F12: =D12*E12 -> 3000 | G12: =+(Main!H31*Main!H32)*Main!H29 -> 2628 | H12: 4 | I12: 93
B17: CORRAL & LOADING CHUTE | F17: 1200 | G17: 0 | H17: 10 | I17: 120
B18: FENCE (MI.) | D18: 2.5 | E18: 1800 | F18: =D18*E18 -> 4500 | G18: 0 | H18: 15 | I18: 300
B19: FEED RACKS | F19: 800 | G19: 0 | H19: 10 | I19: 80
B20: MISC. EQUIPMENT | F20: 500 | G20: 0 | H20: 5 | I20: 100
B22: TOTAL INVESTMENT & DEPRECIATION | F22: =SUM(F10:F20) -> 52000 | G22: =SUM(G10:G20) -> 38928 | I22: =SUM(I12:I20) -> 693
B24: INTEREST ON INVESTMENT (AVE. INV. TIMES INT. RATE) | I24: =(F22+G22)/2*H7 -> 4091.76
B26: TAXES AND INSURANCE | G26: 0.014 | I26: =(F22+G22)/2*G26 -> 636.496
B28: TOTAL ANNUAL FIXED COST | I28: =SUM(I22:I26) -> 5421.256
B30: TOTAL ANNUAL FIXED COST PER BROOD COW | I30: =I28/H6 -> 108.42512

Sheet Fixed_Payment (hidden)
B3: ANNUAL ENTERPRISE FIXED PAYMENTS
B4: (Check All Entries This Page)
E6: NO. OF ACRES: | G6: =+Main!F47+Main!F48+Main!F50 -> 62.5
E7: NO. OF COWS: | G7: =+Main!H18 -> 50
B9: DEBT PAYMENT CALCULATION ON NEW INVESTMENT:
B10: (For Use In Calculating Fixed Cash Outlays on New Investment)
E12: UNIT | F12: TOTAL | G12: ----FINANCING----
B13: ITEM | D13: NUMBER | E13: COST | F13: COST | G13: AMOUNT | H13: YEARS | I13: INT.RATE | J13: PAYMENT
B14: COWS | D14: 100 | E14: 500 | F14: =D14*E14 -> 50000 | G14: 0.5 | H14: 7 | I14: 0.11 | J14: =PMT(I14,H14,-F14*G14) -> 5305.381736
B15: HEIFERS | D15: 20 | E15: 400 | F15: =D15*E15 -> 8000 | G15: 0.5 | H15: 7 | I15: 0.11 | J15: =PMT(I15,H15,-F15*G15) -> 848.8610778
B16: BULLS | D16: 3 | E16: 1500 | F16: =D16*E16 -> 4500 | G16: 0.5 | H16: 7 | I16: 0.11 | J16: 477.4843563
B17: FENCE (MI.) | D17: 2.5 | E17: 1800 | F17: =D17*E17 -> 4500 | G17: 0.5 | H17: 7 | I17: 0.11 | J17: 477.4843563
B18: CORRAL & LOADING CHUTE | F18: 1200 | G18: 0.5 | H18: 7 | I18: 0.11 | J18: 127.3291617
B19: FEED RACKS | F19: 800 | G19: 0.5 | H19: 7 | I19: 0.11 | J19: 84.88610778
B20: MISC. EQUIP. | F20: 500 | G20: 0.5 | H20: 7 | I20: 0.11 | J20: 53.05381736
B22: LAND | D22: 0 | E22: 500 | F22: =D22*E22 -> 0 | G22: 1 | H22: 30 | I22: 0.1 | J22: =PMT(I22,H22,-F22*G22) -> 0
B26: CURRENT ANNUAL DEBT PAYMENTS:
B27: (For Use In Totaling Debt Payments on Existing Investment)
B29: LOAN # 1 | J29: 0
B30: LOAN # 2 | J30: 0
B31: LOAN # 3 | J31: 0
B32: LOAN # 4 | J32: 0
B33: LOAN # 5 | J33: 0
E37: TOTAL ANNUAL DEBT PAYMENT | J37: =SUM(J14:J34) -> 7374.480613
E38: TAXES AND INSURANCE | J38: =+Fixed_Cost!I26 -> 636.496
E41: TOTAL ANNUAL FIXED OUTLAY | J41: =SUM(J37:J38) -> 8010.976613
E42: TOTAL ANNUAL FIXED PAYMENT PER COW | J42: =J41/G7 -> 160.2195323

Sheet J (hidden)
N1: -8941.983176 | O1: 0.02275009265
N2: -6741.166319 | O2: 0.06680727938
A3: 1 | N3: -4540.349463 | O3: 0.1586553132
N4: -3439.941035 | O4: 0.2266273226
N5: -2339.532606 | O5: 0.3085375586
N6: -1239.124178 | O6: 0.4012937347
N7: -138.71575 | O7: 0.4999999998
N8: -138.71575 | O8: 0.4999999998
N9: 961.6926782 | O9: 0.5987062653
N10: 2062.101106 | O10: 0.6914624414
N11: 3162.509535 | O11: 0.7733726774
N12: 4262.917963 | O12: 0.8413446868
N13: 6463.734819 | O13: 0.9331927206
N14: 8664.551676 | O14: 0.9772499073

Sheet K (hidden)

Sheet L (hidden)

Sheet M (hidden)

Sheet N (hidden)

Sheet O (hidden)
A1: 1 | B1: 1
A2: 0
